bitfinex-derivatives/quotes_BTCF0:USTF0_20260207
["timestamp","ask_amount","ask_price","bid_price","bid_amount"]
[1770441510908,0.0002,71152.0,71135.0,0.56192903]
[1770441511109,0.014062,71158.0,71135.0,0.56192903]
[1770441511509,0.014063,71154.0,71135.0,0.56192903]
[1770441511706,0.4908664,71160.0,71135.0,0.56192903]
[1770441511914,0.4908664,71160.0,71122.0,0.56192903]
[1770441512303,0.001,71135.0,71122.0,0.56192903]
[1770441512507,0.53514593,71152.0,71122.0,0.56192903]
[1770441512915,0.014065,71145.0,71122.0,0.56192903]
[1770441514416,0.014065,71147.0,71125.0,0.56192903]
[1770441515513,0.53514593,71151.0,71125.0,0.56192903]
[1770441515711,0.53514593,71151.0,71112.0,0.56958977]
[1770441515911,0.55473518,71140.0,71112.0,0.56958977]
[1770441516314,0.55473518,71140.0,71114.0,0.56958977]
[1770441516510,0.014068,71129.0,71114.0,0.56958977]
[1770441519921,0.55473518,71140.0,71114.0,0.56958977]
[1770441520126,0.014068,71131.0,71114.0,0.56958977]
[1770441520314,0.014068,71131.0,71093.0,0.16776627]
[1770441520315,0.55473518,71140.0,71106.0,0.56958977]
[1770441520614,0.01407,71117.0,71106.0,0.56958977]
[1770441521421,0.014073,71105.0,71093.0,0.56958977]
[1770441521823,0.55473518,71120.0,71093.0,0.56958977]
[1770441522122,0.014073,71106.0,71093.0,0.56958977]
[1770441522423,0.014073,71103.0,71093.0,0.56958977]
[1770441524111,0.55473518,71110.0,71086.0,0.11183685]
[1770441524517,0.55473518,71110.0,71085.0,0.68142662]
[1770441525013,0.55473518,71110.0,71086.0,0.323201]
[1770441525320,0.014073,71105.0,71087.0,0.56958977]
[1770441526212,0.014073,71105.0,71087.0,0.68142662]
[1770441527215,0.55473518,71127.0,71087.0,0.56958977]
[1770441527420,0.014072,71110.0,71091.0,0.56958977]
[1770441528315,0.014072,71110.0,71093.0,0.56958977]
[1770441528716,0.014073,71106.0,71093.0,0.56958977]
[1770441529316,0.014072,71110.0,71093.0,0.56958977]
[1770441531215,0.014071,71114.0,71093.0,0.58366477]
[1770441531415,0.55473518,71135.0,71099.0,0.56958977]
[1770441531615,0.014069,71122.0,71101.0,0.56958977]
[1770441532217,0.014068,71130.0,71109.0,0.56958977]
[1770441532617,0.014068,71130.0,71111.0,0.56958977]
[1770441533214,0.014068,71130.0,71111.0,0.68142662]
[1770441535422,0.55473518,71136.0,71111.0,0.68142662]
[1770441535627,0.55473518,71120.0,71097.0,0.56958977]
[1770441535919,0.014073,71102.0,71090.0,0.56958977]
[1770441536619,0.014074,71100.0,71090.0,0.56958977]
[1770441537919,0.014073,71104.0,71090.0,0.56958977]
[1770441538119,0.014073,71105.0,71090.0,0.56958977]
[1770441538326,0.014072,71109.0,71090.0,0.56958977]
[1770441538827,0.014073,71107.0,71090.0,0.56958977]
[1770441539226,0.014072,71111.0,71092.0,0.56958977]
[1770441539821,0.014072,71108.0,71092.0,0.56958977]
[1770441541124,0.55473518,71109.0,71084.0,0.56958977]
[1770441541335,0.014074,71099.0,71085.0,0.21136077]
[1770441541624,0.014074,71099.0,71084.0,0.56958977]
[1770441541821,0.55473518,71109.0,71084.0,0.56958977]
[1770441542031,0.014076,71089.0,71076.0,0.56958977]
[1770441542924,0.014075,71092.0,71076.0,0.56958977]
[1770441543122,0.014075,71096.0,71078.0,0.56958977]
[1770441543323,0.014075,71093.0,71078.0,0.56958977]
[1770441545123,0.014073,71104.0,71084.0,0.56958977]
[1770441545328,0.55473518,71120.0,71088.0,0.56958977]
[1770441545524,0.55473518,71120.0,71091.0,0.56958977]
[1770441545732,0.014072,71107.0,71091.0,0.56958977]
[1770441546229,0.014072,71111.0,71091.0,0.56958977]
[1770441547027,0.014072,71111.0,71091.0,0.58366577]
[1770441547332,0.014072,71111.0,71093.0,0.55458453]
[1770441547333,0.001,71104.0,71093.0,0.55458453]
[1770441547729,0.014072,71111.0,71093.0,0.55458453]
[1770441548030,0.070337,71135.0,71077.0,0.014078]
[1770441548031,0.54495031,71128.0,71097.0,0.55458453]
[1770441548342,0.001,71120.0,71105.0,0.55458453]
[1770441548631,0.014069,71122.0,71105.0,0.55458453]
[1770441549032,0.01407,71119.0,71105.0,0.55458453]
[1770441549235,0.014069,71123.0,71105.0,0.56865753]
[1770441549532,0.014067,71134.0,71112.0,0.57928119]
[1770441549731,0.014068,71131.0,71114.0,0.57928119]
[1770441550734,0.014068,71128.0,71114.0,0.57928119]
[1770441552128,0.014066,71138.0,71119.0,0.57928119]
[1770441552737,0.56086352,71152.0,71121.0,0.57928119]
[1770441552738,0.014066,71142.0,71121.0,0.57928119]
[1770441552933,0.014065,71146.0,71123.0,0.57928119]
[1770441553129,0.014065,71146.0,71125.0,0.57928119]
[1770441553431,0.014065,71143.0,71125.0,0.57928119]
[1770441553636,0.014065,71143.0,71107.0,0.014072]
[1770441553637,0.014065,71147.0,71127.0,0.57928119]
[1770441554734,0.56086352,71178.0,71127.0,0.57928119]
[1770441554925,0.014061,71163.0,71140.0,0.57928119]
[1770441555126,0.56086352,71174.0,71140.0,0.57928119]
[1770441555331,0.014063,71153.0,71127.0,0.57928119]
[1770441555729,0.014062,71158.0,71131.0,0.57928119]
[1770441556031,0.014061,71163.0,71135.0,0.57928119]
[1770441556231,0.014062,71159.0,71135.0,0.57928119]
[1770441557138,0.014062,71159.0,71135.0,0.59334819]
[1770441557330,0.014061,71164.0,71135.0,0.59334819]
[1770441557537,0.01406,71172.0,71144.0,0.57928119]
[1770441558136,0.01406,71168.0,71144.0,0.57928119]
[1770441558536,0.01406,71169.0,71144.0,0.59334619]
[1770441560143,0.014059,71173.0,71149.0,0.57928119]
[1770441560638,0.56086352,71182.0,71151.0,0.57928119]
[1770441560840,0.001,71172.0,71154.0,0.57928119]
[1770441561031,0.014057,71183.0,71157.0,0.014062]
[1770441561236,0.014057,71183.0,71158.0,0.57928119]
[1770441561744,0.014058,71180.0,71158.0,0.57928119]
[1770441562250,0.56086352,71186.0,71158.0,0.57928119]
[1770441562746,0.014059,71177.0,71158.0,0.57928119]
[1770441564148,0.014059,71174.0,71158.0,0.57928119]
[1770441564348,0.014057,71185.0,71161.0,0.57928119]
[1770441564548,0.014058,71182.0,71161.0,0.57928119]
[1770441564754,0.014008,71182.0,71161.0,0.57928119]
[1770441565046,0.0140948,71198.0,71161.0,0.57928119]
[1770441565350,0.56086352,71196.0,71173.0,0.57928119]
[1770441565648,0.014055,71194.0,71173.0,0.57928119]
[1770441565849,0.0140948,71198.0,71173.0,0.57928119]
[1770441566238,0.56086352,71193.0,71165.0,0.57928119]
[1770441566848,0.56086352,71190.0,71165.0,0.57928119]
[1770441567053,0.014058,71181.0,71165.0,0.57928119]
[1770441567249,0.014059,71177.0,71157.0,0.57928119]
[1770441567553,0.014059,71173.0,71157.0,0.57928119]
[1770441567754,0.01406,71170.0,71150.0,0.59334519]
[1770441568058,0.56086352,71181.0,71150.0,0.59334519]
[1770441568650,0.01406,71171.0,71150.0,0.59334519]
[1770441569058,0.01406,71168.0,71150.0,0.57928119]
[1770441569545,0.56086352,71172.0,71150.0,0.57928119]
[1770441569748,0.01406,71170.0,71150.0,0.57928119]
[1770441570349,0.56086352,71176.0,71142.0,0.57928119]
[1770441570557,0.56086352,71174.0,71142.0,0.57928119]
[1770441570860,0.014063,71156.0,71142.0,0.57928119]
[1770441571451,0.014062,71160.0,71142.0,0.57928119]
[1770441571860,0.014063,71157.0,71142.0,0.57928119]
[1770441572052,0.014063,71154.0,71142.0,0.57928119]
[1770441572357,0.56086352,71161.0,71131.0,0.57928119]
[1770441572858,0.014064,71149.0,71131.0,0.57928119]
[1770441573255,0.56086352,71159.0,71131.0,0.57928119]
[1770441573557,0.01406,71169.0,71136.0,0.57928119]
[1770441573558,0.56086352,71168.0,71136.0,0.57928119]
[1770441573760,0.014063,71154.0,71136.0,0.57928119]
[1770441574147,0.014064,71151.0,71136.0,0.57928119]
[1770441574754,0.014064,71152.0,71136.0,0.57928119]
[1770441574954,0.014064,71149.0,71136.0,0.57928119]
[1770441575150,0.014064,71149.0,71128.0,0.014068]
[1770441575356,0.014063,71153.0,71133.0,0.014067]
[1770441575556,0.014063,71153.0,71134.0,0.57928119]
[1770441576563,0.014064,71149.0,71134.0,0.57928119]
[1770441576765,0.029129,71149.0,71134.0,0.57928119]
[1770441577758,0.015065,71149.0,71134.0,0.57928119]
[1770441579364,0.015015,71149.0,71134.0,0.57928119]
[1770441579966,0.014064,71148.0,71134.0,0.57928119]
[1770441580566,0.014066,71140.0,71125.0,0.18425142]
[1770441581162,0.57795272,71145.0,71121.0,0.16677005]
[1770441581368,0.014068,71130.0,71118.0,0.18111761]
[1770441581861,0.57795272,71139.0,71118.0,0.18111761]
[1770441582371,0.014068,71131.0,71118.0,0.18111761]
[1770441582660,0.014068,71131.0,71111.0,0.34788766]
[1770441582868,0.014068,71131.0,71112.0,0.21128648]
[1770441583066,0.014068,71131.0,71114.0,0.16677005]
[1770441583367,0.014068,71131.0,71115.0,0.21128648]
[1770441583560,0.014068,71131.0,71116.0,0.21128648]
[1770441583864,0.014068,71131.0,71113.0,0.16677005]
[1770441584171,0.57795272,71139.0,71114.0,0.21128808]
[1770441584172,0.014068,71127.0,71114.0,0.21128808]
[1770441584366,0.57795272,71136.0,71110.0,0.16677005]
[1770441584666,0.014071,71115.0,71103.0,0.19888472]
[1770441585066,0.57795272,71121.0,71096.0,0.36565477]
[1770441585262,0.070332,71140.0,71097.0,0.2113344]
[1770441585263,0.57795272,71119.0,71097.0,0.2113344]
[1770441585464,0.57795272,71119.0,71096.0,0.19888472]
[1770441585665,0.014071,71112.0,71096.0,0.19888472]
[1770441586165,0.014073,71102.0,71091.0,0.16677005]
[1770441586362,0.014073,71102.0,71089.0,0.18359145]
[1770441586568,0.014075,71093.0,71081.0,0.18359145]
[1770441586870,0.014075,71093.0,71073.0,0.3503615]
[1770441587058,0.57795272,71104.0,71075.0,0.3503615]
[1770441587262,0.57795272,71104.0,71074.0,0.21138826]
[1770441587263,0.014074,71099.0,71079.0,0.17080214]
[1770441587469,0.57795272,71101.0,71079.0,0.17080214]
[1770441587972,0.014075,71093.0,71079.0,0.17080214]
[1770441588268,0.57795272,71101.0,71079.0,0.17080214]
[1770441588269,0.014074,71097.0,71079.0,0.17080214]
[1770441588471,0.014075,71094.0,71079.0,0.17080214]
[1770441588969,0.014076,71091.0,71070.0,0.17080214]
[1770441589374,0.014071,71115.0,71070.0,0.17080214]
[1770441589375,0.014076,71088.0,71070.0,0.17080214]
[1770441589870,0.014075,71092.0,71070.0,0.17080214]
[1770441592968,0.029083,71089.0,71070.0,0.17080214]
[1770441593671,0.043159,71089.0,71070.0,0.17080214]
[1770441593869,0.029083,71089.0,71072.0,0.14489179]
[1770441596770,0.014074,71098.0,71078.0,0.014078]
[1770441596970,0.014073,71102.0,71079.0,0.14806404]
[1770441597168,0.014073,71102.0,71081.0,0.14806404]
[1770441597664,0.014074,71099.0,71081.0,0.14806404]
[1770441598875,0.014073,71103.0,71083.0,0.14436195]
[1770441600278,0.014073,71107.0,71085.0,0.14279503]
[1770441600869,0.014073,71104.0,71087.0,0.14279503]
[1770441607974,0.01407,71118.0,71099.0,0.11149098]
[1770441608277,0.029083,71109.0,71099.0,0.12556498]
[1770441608674,0.014066,71139.0,71102.0,0.11149098]
[1770441608875,0.01407,71121.0,71106.0,0.11149098]
[1770441609077,0.01407,71119.0,71106.0,0.11149098]
[1770441609578,0.014069,71123.0,71106.0,0.11149098]
[1770441610077,0.014063,71156.0,71111.0,0.11504669]
[1770441610078,0.54498443,71140.0,71111.0,0.11504669]
[1770441610582,0.54498443,71140.0,71113.0,0.11504669]
[1770441610783,0.070317,71155.0,71113.0,0.11504669]
[1770441610784,0.54498443,71137.0,71113.0,0.11504669]
[1770441611485,0.54267439,71122.0,71110.0,9e-08]
[1770441611673,0.014067,71136.0,71097.0,0.28874685]
[1770441611674,0.54267439,71119.0,71097.0,0.28874685]
[1770441611877,0.014072,71112.0,71097.0,0.1219768]
[1770441612083,0.014072,71109.0,71091.0,0.16677005]
[1770441612382,0.014072,71110.0,71092.0,0.21134761]
[1770441612685,0.54267439,71111.0,71090.0,0.1219768]
[1770441613285,0.014073,71106.0,71090.0,0.1219768]
[1770441613589,0.014074,71100.0,71082.0,0.14805407]
[1770441613772,0.014074,71100.0,71083.0,0.2113689]
[1770441613975,0.014074,71100.0,71084.0,0.2113689]
[1770441614176,0.014074,71100.0,71085.0,0.2113689]
[1770441614377,0.014074,71100.0,71086.0,0.2113689]
[1770441614586,0.014074,71100.0,71082.0,0.31482412]
[1770441614790,0.014074,71100.0,71083.0,0.21136991]
[1770441615085,0.014074,71100.0,71084.0,0.21136991]
[1770441615285,0.014074,71100.0,71085.0,0.21136991]
[1770441615488,0.014074,71100.0,71086.0,0.21136991]
[1770441615690,0.014074,71100.0,71082.0,0.30074712]
[1770441615984,0.014074,71100.0,71083.0,0.21137058]
[1770441616185,0.014074,71100.0,71084.0,0.21137058]
[1770441616380,0.53950351,71104.0,71085.0,0.21137058]
[1770441616578,0.53950351,71104.0,71086.0,0.21137058]
[1770441616780,0.014075,71092.0,71081.0,0.16677005]
[1770441616983,0.014075,71092.0,71077.0,0.13148945]
[1770441617287,0.014075,71092.0,71078.0,0.2113859]
[1770441617588,0.014075,71092.0,71079.0,0.2113859]
[1770441617788,0.014075,71092.0,71077.0,0.13148945]
[1770441618090,0.014075,71092.0,71079.0,0.13191104]
[1770441619988,0.014075,71096.0,71079.0,0.13191104]
[1770441620491,0.014075,71093.0,71079.0,0.13191104]
[1770441620680,0.014074,71097.0,71079.0,0.13191104]
[1770441621286,0.014075,71094.0,71079.0,0.13191104]
[1770441621488,0.00602625,71091.0,71079.0,0.13191104]
[1770441621789,0.00602625,71091.0,71081.0,0.13196014]
[1770441622291,0.00602625,71091.0,71083.0,0.13196014]
[1770441626284,0.014075,71094.0,71083.0,0.13196014]
[1770441626486,0.014075,71094.0,71085.0,0.13927005]
[1770441626685,0.014074,71098.0,71085.0,0.13927005]
[1770441627795,0.014073,71105.0,71090.0,0.16677005]
[1770441627986,0.014073,71105.0,71092.0,0.13894704]
[1770441628180,0.014073,71105.0,71094.0,0.13894704]
[1770441629486,0.014073,71102.0,71090.0,0.16677005]
[1770441629690,0.014073,71102.0,71091.0,0.21136675]
[1770441629885,0.014073,71102.0,71092.0,0.21136675]
[1770441630081,0.014073,71102.0,71090.0,0.30381715]
[1770441630282,0.014073,71102.0,71091.0,0.34841027]
[1770441630487,0.014073,71102.0,71092.0,0.21136317]
[1770441630695,0.014073,71102.0,71091.0,0.1370471]
[1770441630887,0.014073,71102.0,71092.0,0.3484105]
[1770441631090,0.014073,71102.0,71092.0,0.1370471]
[1770441631290,0.53709961,71104.0,71089.0,0.16677005]
[1770441631596,0.014074,71098.0,71090.0,0.3655428]
[1770441631793,0.014074,71098.0,71090.0,0.15417928]
[1770441631988,0.014074,71102.0,71090.0,0.15417928]
[1770441633294,0.014074,71099.0,71090.0,0.15417928]
[1770441635001,0.53709961,71111.0,71081.0,0.14814124]
[1770441635002,0.014075,71094.0,71081.0,0.14814124]
[1770441635189,0.014075,71094.0,71082.0,0.21137997]
[1770441635497,0.014075,71094.0,71081.0,0.14814124]
[1770441635688,0.014075,71094.0,71082.0,0.35811262]
[1770441635883,0.014075,71094.0,71082.0,0.14673129]
[1770441638197,0.014076,71092.0,71082.0,0.14673129]
[1770441638391,0.02010225,71092.0,71082.0,0.14673129]
[1770441639291,0.014073,71103.0,71084.0,0.14976208]
[1770441639488,0.014073,71103.0,71086.0,0.14976208]
[1770441639692,0.014073,71103.0,71088.0,0.14976208]
[1770441639888,0.084411,71129.0,71106.0,0.014072]
[1770441639889,0.014068,71129.0,71106.0,0.014072]
[1770441640199,0.54768554,71131.0,71107.0,0.13568908]
[1770441640200,0.014069,71123.0,71107.0,0.13568908]
[1770441640591,0.014069,71127.0,71107.0,0.13568908]
[1770441641194,0.014069,71127.0,71109.0,0.13568908]
[1770441641594,0.014069,71127.0,71109.0,0.14976108]
[1770441642502,0.54768554,71138.0,71113.0,0.13232717]
[1770441643503,0.014067,71133.0,71113.0,0.13232717]
[1770441643901,0.014068,71130.0,71113.0,0.13232717]
[1770441644099,0.54768554,71135.0,71113.0,0.13232717]
[1770441644898,0.014069,71123.0,71104.0,0.12675976]
[1770441645102,0.014069,71123.0,71089.0,0.27844986]
[1770441645103,0.014073,71105.0,71094.0,0.16677005]
[1770441645298,0.014073,71102.0,71088.0,0.12675976]
[1770441646095,0.014074,71099.0,71088.0,0.12675976]
[1770441646296,0.014074,71099.0,71079.0,0.14107079]
[1770441646496,0.014074,71099.0,71081.0,0.14107079]
[1770441648698,0.014073,71103.0,71083.0,0.13985259]
[1770441650704,0.014074,71100.0,71083.0,0.13985259]
[1770441654407,0.54768554,71103.0,71083.0,0.13985259]
[1770441654608,0.014068,71129.0,71088.0,0.014076]
[1770441654907,0.014068,71129.0,71092.0,0.40097005]
[1770441655107,0.014067,71133.0,71110.0,0.00059585]
[1770441655506,0.014067,71133.0,71112.0,0.00059585]
[1770441655705,0.014067,71133.0,71113.0,0.00059585]
[1770441655908,0.014067,71133.0,71113.0,0.01466785]
[1770441656108,0.014067,71133.0,71114.0,0.014072]
[1770441656504,0.014067,71133.0,71115.0,0.01466785]
[1770441656698,0.014067,71134.0,71115.0,0.00059585]
[1770441656902,0.014067,71134.0,71116.0,0.014072]
[1770441657308,0.014067,71134.0,71115.0,0.00059585]
[1770441657309,0.014067,71134.0,71117.0,0.014072]
[1770441657611,0.014067,71134.0,71116.0,0.014072]
[1770441658002,0.014067,71134.0,71117.0,0.014072]
[1770441658298,0.014067,71134.0,71116.0,0.014072]
[1770441658809,0.014067,71134.0,71117.0,0.014072]
[1770441659113,0.014067,71134.0,71116.0,0.014072]
[1770441659710,0.014067,71134.0,71117.0,0.014072]
[1770441660010,0.014067,71136.0,71117.0,0.01407]
[1770441660210,0.59740033,71133.0,71118.0,0.014072]
[1770441660404,0.59740033,71133.0,71115.0,0.00059585]
[1770441660405,0.58333333,71133.0,71119.0,0.014072]
[1770441660606,0.014067,71134.0,71116.0,0.028142]
[1770441660806,0.014067,71134.0,71116.0,0.01407]
[1770441661007,0.014067,71134.0,71117.0,0.014072]
[1770441661511,0.5965912,71138.0,71118.0,0.014072]
[1770441661708,0.5825252,71154.0,71120.0,0.00242438]
[1770441661903,0.5965882,71154.0,71133.0,0.00242438]
[1770441662104,0.5965882,71154.0,71134.0,0.014072]
[1770441662305,0.014064,71149.0,71134.0,0.014072]
[1770441662601,0.5825252,71150.0,71135.0,0.014072]
[1770441662808,0.5965892,71150.0,71134.0,0.014072]
[1770441663111,0.5965892,71150.0,71132.0,0.014072]
[1770441663311,0.5965892,71150.0,71133.0,0.014072]
[1770441663511,0.5965892,71150.0,71132.0,0.014072]
[1770441663914,0.5965892,71150.0,71133.0,0.014072]
[1770441664101,0.5965892,71150.0,71132.0,0.014072]
[1770441664614,0.014061,71167.0,71115.0,0.02328879]
[1770441664615,0.57087973,71139.0,71115.0,0.02328879]
[1770441664914,0.57087973,71134.0,71113.0,0.014071]
[1770441665412,0.58791712,71131.0,71109.0,0.014072]
[1770441666614,0.58791712,71128.0,71108.0,0.014072]
[1770441668802,0.59471868,71125.0,71104.0,0.014073]
[1770441669411,0.59288084,71122.0,71104.0,0.014073]
[1770441669715,0.59288084,71122.0,71103.0,0.014073]
[1770441670107,0.59288084,71122.0,71102.0,0.00805094]
[1770441670704,0.57881184,71122.0,71097.0,0.16677005]
[1770441670911,0.014071,71114.0,71095.0,0.02763945]
[1770441671110,0.59288184,71118.0,71097.0,0.014074]
[1770441671308,0.59288184,71118.0,71100.0,0.014074]
[1770441672312,0.57888905,71156.0,71112.0,0.01393282]
[1770441672511,0.014059,71174.0,71117.0,0.01393282]
[1770441672512,0.57568905,71138.0,71117.0,0.01393282]
[1770441672814,0.57568905,71138.0,71121.0,0.014069]
[1770441673718,0.014065,71144.0,71123.0,0.014069]
[1770441674018,0.5786372,71147.0,71126.0,0.014069]
[1770441674218,0.014065,71143.0,71123.0,0.01408839]
[1770441674520,0.014065,71143.0,71125.0,0.01408839]
[1770441675011,0.5786372,71147.0,71125.0,0.01408839]
[1770441675208,0.014064,71151.0,71133.0,0.00668122]
[1770441675415,0.58110625,71166.0,71143.0,0.00668122]
[1770441675620,0.58110625,71164.0,71144.0,0.00668122]
[1770441675831,0.59516725,71164.0,71144.0,0.00668122]
[1770441676023,0.59516725,71164.0,71141.0,0.12610887]
[1770441676329,0.59516725,71164.0,71143.0,0.014065]
[1770441676535,0.59516725,71164.0,71144.0,0.00668122]
[1770441676829,0.01406,71170.0,71146.0,0.00668122]
[1770441677032,0.58110625,71172.0,71149.0,0.02074522]
[1770441677427,0.01406,71171.0,71149.0,0.02074522]
[1770441678024,0.58333333,71170.0,71149.0,0.014064]
[1770441678230,0.4715968,71156.0,71126.0,0.11991072]
[1770441678438,0.4715968,71156.0,71127.0,0.21122807]
[1770441678624,0.014064,71150.0,71128.0,0.21122807]
[1770441678830,0.014064,71150.0,71127.0,0.014068]
[1770441679034,0.014064,71150.0,71129.0,0.014068]
[1770441679437,0.64332674,71191.0,71138.0,0.10743241]
[1770441679737,0.014059,71174.0,71150.0,0.11023241]
[1770441679938,0.0002,71172.0,71150.0,0.11023241]
[1770441680126,0.0002,71172.0,71152.0,0.014063]
[1770441680438,0.014059,71174.0,71152.0,0.014063]
[1770441681140,0.014059,71174.0,71152.0,0.12429541]
[1770441681327,0.014058,71178.0,71152.0,0.12429541]
[1770441681530,0.014058,71182.0,71158.0,0.12284588]
[1770441683834,0.014057,71184.0,71161.0,0.14140994]
[1770441684037,0.014058,71181.0,71161.0,0.12734794]
[1770441684238,0.014057,71186.0,71161.0,0.12734794]
[1770441684435,0.014058,71183.0,71161.0,0.12734794]
[1770441684643,0.014057,71188.0,71161.0,0.12734794]
[1770441684942,0.014056,71192.0,71171.0,0.12734794]
[1770441685542,0.57304574,71195.0,71171.0,0.12734794]
[1770441685835,0.58714054,71198.0,71171.0,0.12734794]
[1770441686042,0.57304574,71185.0,71159.0,0.16677005]
[1770441686340,0.57304574,71185.0,71156.0,0.12626546]
[1770441686537,0.57304574,71185.0,71161.0,0.12626546]
[1770441687637,0.014057,71186.0,71163.0,0.13268262]
[1770441687832,0.014057,71183.0,71163.0,0.13268262]
[1770441688638,0.58710374,71180.0,71157.0,0.014062]
[1770441688837,0.58710474,71177.0,71157.0,0.014062]
[1770441689148,0.58710174,71192.0,71168.0,0.14674262]
[1770441689646,0.014056,71189.0,71168.0,0.13268262]
[1770441690240,0.014056,71193.0,71170.0,0.12222735]
[1770441690446,0.0140948,71198.0,71165.0,0.13628835]
[1770441690447,0.57304574,71191.0,71165.0,0.13628835]
[1770441690843,0.57304574,71240.0,71194.0,0.12222735]
[1770441691147,0.014047,71237.0,71207.0,0.12222735]
[1770441691344,0.014048,71233.0,71209.0,0.03585485]
[1770441691543,0.58709274,71238.0,71211.0,0.014052]
[1770441691742,0.58729274,71238.0,71212.0,0.03585485]
[1770441692049,0.06508197,71225.0,71212.0,0.03585485]
[1770441692549,0.07913097,71225.0,71203.0,0.03585485]
[1770441692747,0.06508197,71225.0,71203.0,0.03585485]
[1770441692948,0.02922712,71214.0,71203.0,0.03585485]
[1770441693347,0.02922712,71214.0,71195.0,0.014055]
[1770441693643,0.02922712,71214.0,71194.0,0.014055]
[1770441694041,0.02922712,71204.0,71194.0,0.014055]
[1770441694246,0.02922712,71204.0,71194.0,0.00568074]
[1770441694649,0.014051,71217.0,71194.0,0.00568074]
[1770441694853,0.02922712,71216.0,71194.0,0.00568074]
[1770441695144,0.014051,71216.0,71194.0,0.00568074]
[1770441695348,0.61256045,71215.0,71188.0,0.014056]
[1770441695543,0.61256045,71214.0,71188.0,0.014056]
[1770441695753,0.58333333,71214.0,71188.0,0.014056]
[1770441696048,0.61256045,71213.0,71188.0,0.014056]
[1770441696250,0.59738533,71212.0,71166.0,1.07677005]
[1770441696547,0.014053,71204.0,71175.0,0.014059]
[1770441696851,0.59738633,71204.0,71175.0,0.014059]
[1770441697046,0.02922712,71203.0,71179.0,0.014058]
[1770441697446,0.02922712,71202.0,71179.0,0.014058]
[1770441697648,0.02922712,71203.0,71179.0,0.014058]
[1770441698148,0.02922712,71202.0,71179.0,0.014058]
[1770441698352,0.02922712,71203.0,71179.0,0.014058]
[1770441698551,0.02922712,71202.0,71179.0,0.014058]
[1770441698743,0.02922712,71201.0,71179.0,0.014058]
[1770441698943,0.02922712,71203.0,71179.0,0.014058]
[1770441699341,0.02922712,71202.0,71179.0,0.014058]
[1770441699543,0.014054,71202.0,71179.0,0.014058]
[1770441699749,0.014054,71200.0,71179.0,0.014058]
[1770441699946,0.59738733,71200.0,71175.0,0.014059]
[1770441700152,0.014055,71196.0,71175.0,0.014059]
[1770441700348,1.2e-07,71199.0,71163.0,0.014061]
[1770441700552,0.58053333,71230.0,71205.0,0.014053]
[1770441700759,0.014048,71229.0,71205.0,0.014053]
[1770441701248,0.59737933,71239.0,71209.0,0.014052]
[1770441701453,0.59737933,71239.0,71213.0,0.014051]
[1770441702250,0.59737533,71260.0,71228.0,0.014048]
[1770441702456,0.0002,71250.0,71220.0,0.01405]
[1770441702648,0.0002,71250.0,71213.0,0.16639924]
[1770441702649,0.0002,71250.0,71216.0,0.16639924]
[1770441702848,0.0002,71250.0,71217.0,0.21094569]
[1770441703157,0.0002,71250.0,71218.0,0.21094569]
[1770441703449,0.58353333,71250.0,71224.0,0.014049]
[1770441703655,0.0002,71247.0,71229.0,0.014048]
[1770441704046,0.0002,71247.0,71223.0,0.014049]
[1770441704253,0.58333333,71245.0,71211.0,0.18045124]
[1770441704558,0.58333333,71245.0,71211.0,0.014052]
[1770441704858,0.58333333,71239.0,71210.0,0.014052]
[1770441705159,0.58333333,71239.0,71212.0,0.00153152]
[1770441705755,0.58333333,71239.0,71213.0,0.014051]
[1770441705960,0.13850129,71270.0,71207.0,0.16639924]
[1770441705961,0.0002,71243.0,71216.0,0.00153152]
[1770441706152,0.0002,71243.0,71222.0,0.00153152]
[1770441706452,0.0002,71243.0,71224.0,0.00153152]
[1770441707047,0.59686682,71253.0,71224.0,0.00153152]
[1770441708051,0.58333333,71250.0,71224.0,0.01558052]
[1770441708259,0.0002,71251.0,71224.0,0.014049]
[1770441708856,0.58353333,71251.0,71224.0,0.014049]
[1770441709048,0.58333333,71245.0,71219.0,0.01405]
[1770441709250,0.58333333,71245.0,71220.0,0.21094479]
[1770441709455,0.014045,71244.0,71217.0,0.014051]
[1770441709654,0.58333333,71245.0,71219.0,0.01405]
[1770441709958,0.59737833,71245.0,71216.0,0.014051]
[1770441710162,0.59737833,71245.0,71217.0,0.21095597]
[1770441710363,0.58333333,71269.0,71239.0,0.014046]
[1770441710560,0.58333333,71269.0,71243.0,0.014045]
[1770441710752,0.58333333,71269.0,71232.0,0.16639924]
[1770441711060,0.0002,71282.0,71217.0,0.58588]
[1770441711061,0.59737433,71265.0,71233.0,0.21090272]
[1770441711360,0.59737433,71265.0,71234.0,0.21090272]
[1770441711555,0.0002,71263.0,71240.0,0.014046]
[1770441712562,0.0002,71263.0,71241.0,0.014046]
[1770441712757,0.58333333,71267.0,71241.0,0.014046]
[1770441712963,0.58333333,71264.0,71235.0,0.014047]
[1770441713856,0.58353333,71258.0,71230.0,0.014048]
[1770441714061,0.58333333,71252.0,71230.0,0.014048]
[1770441714364,0.58333333,71248.0,71220.0,0.01405]
[1770441714663,0.58333333,71240.0,71213.0,0.16639924]
[1770441714960,0.59737933,71239.0,71214.0,0.014051]
[1770441715860,0.58333333,71235.0,71210.0,0.014052]
[1770441716452,0.58333333,71233.0,71210.0,0.014052]
[1770441716657,0.58333333,71229.0,71206.0,0.014053]
[1770441717054,0.58333333,71229.0,71207.0,0.21099042]
[1770441717255,0.58333333,71229.0,71206.0,0.014053]
[1770441717456,0.014047,71234.0,71211.0,0.014052]
[1770441717755,0.58333333,71233.0,71211.0,0.014052]
[1770441719064,0.58333333,71233.0,71212.0,0.21098468]
[1770441719362,0.58333333,71233.0,71211.0,0.014052]
[1770441719663,0.58333333,71233.0,71212.0,0.21098468]
[1770441719960,0.58333333,71233.0,71211.0,0.014052]
[1770441720157,0.58333333,71233.0,71212.0,0.21098468]
[1770441720358,0.58333333,71233.0,71213.0,0.21098468]
[1770441720556,0.58333333,71233.0,71211.0,0.014052]
[1770441720760,0.58333333,71233.0,71212.0,0.21098468]
[1770441721058,0.58333333,71233.0,71211.0,0.014052]
[1770441721059,0.58333333,71233.0,71213.0,0.21098468]
[1770441721260,0.58333333,71233.0,71211.0,0.014052]
[1770441721460,0.58333333,71233.0,71212.0,0.21098465]
[1770441721662,0.58333333,71233.0,71213.0,0.21098465]
[1770441721862,0.58333333,71233.0,71214.0,0.21098468]
[1770441722161,0.014047,71238.0,71215.0,0.22503568]
[1770441722368,0.58333333,71243.0,71218.0,0.16639924]